Workbook

Sheet Tableau 12
A1: Tableau 12: Abonnements délivrés
A3: en nombre de titres | B3: 2016 | C3: 2017 | D3: 2018 | E3: 2019
A4: Pass lecture/culture - Bibliothèque tous publics* | B4: 29648 | C4: 37271 | D4: 37009 | E4: 39805
A5: Pass annuel recherche** | B5: 17810 | C5: 22389 | D5: 21384 | E5: 21477
A6: Carte 15 entrées** | B6: 1632 | C6: =203+214 -> 417
A7: Carte 3 entrées** | B7: 8933 | C7: =1020+937 -> 1957
A8: Pass recherche 5 entrées | C8: 2496 | D8: 2792 | E8: 2687
A9: Pass recherche 1 entrée | C9: 7327 | D9: 9164 | E9: 9171
A10: Total Recherche | B10: =SUM(B5:B7) -> 28375 | C10: =SUM(C5:C9) -> 34586 | D10: =SUM(D5:D9) -> 33340 | E10: =SUM(E5:E9) -> 33335
A11: *jusqu'en 2016 ont été soustraites les cartes produites en remplacement de cartes perdues ou détruites
A12: **jusqu'en 2016 n’ont pas été soustraites les cartes produites en remplacement de cartes perdues ou détruites

Sheet Tableau 13
A1: Tableau 13 : Fréquentation des salles de lecture
B3: 2016 | C3: 2017 | D3: 2018 | E3: 2019
A4: Rez-de-jardin | B4: 285771 | C4: 302031 | D4: 309969 | E4: 302303
A5: Richelieu | B5: 33883 | C5: 28679 | D5: 27043 | E5: 27571
A6: Arsenal | B6: 8268 | C6: 8236 | D6: 7432 | E6: 8084
A7: Opéra | B7: 2128 | C7: 2076 | D7: 2036 | E7: 2198
A8: Avignon | B8: 4563 | C8: 6321 | D8: 4204 | E8: 6004
A9: Sous total RAO | B9: =SUM(B5:B8) -> 48842 | C9: =SUM(C5:C8) -> 45312 | D9: =SUM(D5:D8) -> 40715 | E9: =SUM(E5:E8) -> 43857
A10: Total bibliothèque de recherche | B10: =B9+B4 -> 334613 | C10: =C9+C4 -> 347343 | D10: =D9+D4 -> 350684 | E10: =E9+E4 -> 346160
A11: Haut-de-jardin | B11: 472596 | C11: 507976 | D11: 507637 | E11: 504604
A12: Estimations Haut-de-jardin hors salles de lecture | B12: 67081 | C12: 66619 | D12: 66230 | E12: 70054
A13: Total Haut-de-jardin | B13: =B11+B12 -> 539677 | C13: 574595 | D13: 573867 | E13: =E11+E12 -> 574658
A14: Total BnF | B14: =B10+B13 -> 874290 | C14: =C10+C13 -> 921938 | D14: 926231 | E14: =E10+E13 -> 920818

Sheet Tableau 14
A1: Tableau 14 : Nombre de documents communiqués
B3: 2016 | C3: 2017 | D3: 2018 | E3: 2019
A4: Rez-de-Jardin | B4: 708722 | C4: 705420 | D4: 670848 | E4: 780461
A5: RAO | B5: 136192 | C5: 175655 | D5: 200132 | E5: 161612
A6: Total sur support | B6: =SUM(B4:B5) -> 844914 | C6: 881075 | D6: 870980 | E6: =SUM(E4:E5) -> 942073
A7: Gallica intramuros | B7: 144085 | C7: 135301 | D7: 119213 | E7: 125173
A8: Total BnF | B8: =B6+B7 -> 988999 | C8: =C6+C7 -> 1016376 | D8: 990193 | E8: =E6+E7 -> 1067246
A10: En 2019, évolution de l'indicateur Rez-de-jardin, pour inclure plus systématiquement les
A11: demandes de mise de côté communiquées le lendemain

Sheet Tableau 15
A1: Tableau 15 : Fréquentation des expositions temporaires (accès payants et gratuits)
A3: En nombre de visites
A4: Fréquentation des expositions temporaires | B4: Salle | C4: 2019 | D4: 2018/2019
A5: Les Nadar | B5: Galerie 2 - François-Mitterrand | C5: 16858 | D5: 42814
A6: Carte blanche à Jan Dibbets | B6: Galerie 1 - François-Mitterrand | C6: 3078 | D6: 6434
A7: Manuscrits de l’extrême | B7: Galerie 1 - François-Mitterrand | C7: 13867
A8: Le monde en sphères | B8: Galerie 2 - François-Mitterrand | C8: 19769
A9: Tolkien. Voyage en Terre du Milieu* | B9: Galeries 1 et 2 - François-Mitterrand | C9: 72024
A10: Total expositions payantes | C10: =SUM(C5:C9) -> 125596
A11: Vladimir Jankélévitch : figures du philosophe | B11: Galerie des donateurs - François-Mitterrand | C11: 12704
A12: Antonio Segui | B12: Galerie des donateurs - François-Mitterrand | C12: 12382
A13: Astérix le Gauloix : aux origines | B13: Galerie des donateurs - François-Mitterrand | C13: 2154
A14: Denis Brihat : de la nature des choses | B14: Galerie des donateurs - François-Mitterrand | C14: 13002
A15: Total expositions gratuites | C15: =SUM(C11:C14) -> 40242
A16: Un air d’Italie : l’Opéra de Paris de Louis XIV à la Révolution | B16: Opéra Garnier | C16: 104152
A17: Le Grand Opéra : le spectacle de l'histoire* | B17: Opéra Garnier | C17: 65555
A18: Total expositions site Opéra | C18: =C16+C17 -> 169707
A19: TOTAL | C19: =C10+C15+C18 -> 335545
A21: * expositions dont l’exploitation s’étend en 2020

Sheet Tableau 16
A1: Tableau 16 : Fréquentation des principales manifestations culturelles
A2: Manifestations ayant rassemblé 200 personnes ou plus
A4: Cycle | B4: Titre | C4: Type de manifestation | D4: Date | E4: Lieu | F4: Fréq.
A5: Autour de l’exposition Tolkien, voyage en Terre du Milieu | B5: Carte blanche à Adam Tolkien | C5: Conférence | D5: 2019-11-14 | E5: FM - Grand auditorium | F5: 492
A6: Autour de l’exposition Tolkien, voyage en Terre du Milieu | B6: L'invention des langues | C6: Conférence | D6: 2019-11-28 | E6: FM - Grand auditorium | F6: 352
A7: La Danse verticale en KIT | B7: Hisse-moi, Verticale de poche, Solo ascensionnel et Diagoniales ascendantes | C7: Événement | D7: 2019-05-17 | E7: FM - Esplanade | F7: 350
A8: 4e journée professionnelle « Systèmes & Données » | B8: N’oubliez pas les données d’autorité […] | C8: Journée professionnelle | D8: 2019-11-15 | E8: FM - Grand auditorium | F8: 330
A9: Un texte, un mathématicien | B9: Mathématiques, déraisonnablement efficaces, profondément humaines | C9: Conférence | D9: 2019-03-13 | E9: FM - Grand auditorium | F9: 315
A10: Cours méthodique et populaire de philosophie | B10: Fin de l’idéal ? Par François Jullien | C10: Conférence | D10: 2019-11-05 | E10: FM - Grand auditorium | F10: 284
A11: Ciné-débats : Mettre en scène : théâtre et cinéma | B11: Guillaume Gallienne | C11: Conférence | D11: 2019-01-30 | E11: FM - Grand auditorium | F11: 283
A12: Nuit des idées 2019 | B12: Débat et master classes avec France Culture | C12: Événement | D12: 2019-01-31 | E12: FM - Frise - Hall Est | F12: 280
A13: Ciné-débats : Mettre en scène : théâtre et cinéma | B13: Zabou Breitman | C13: Conférence | D13: 2019-02-06 | E13: FM - Grand auditorium | F13: 260
A14: - | B14: Du cirque à Richelieu ! | C14: Événement | D14: 2019-09-28 | E14: Richelieu | F14: 250
A15: Cours méthodique et populaire de philosophie | B15: Devenir, processus, événement, par François Jullien | C15: Conférence | D15: 2019-11-26 | E15: FM - Grand auditorium | F15: 249
A16: Fleurs d'éloquence | B16: 8e édition du concours d’art oratoire Sorbonne Universités | C16: Performance | D16: 2019-05-07 | E16: FM - Grand auditorium | F16: 230
A17: Cours méthodique et populaire de philosophie | B17: Si douteuse harmonie | C17: Conférence | D17: 2019-04-03 | E17: FM - Grand auditorium | F17: 222
A18: Festival Dionysies | B18: Orestie, trilogie d’Eschyle - Agamemnon, Les Choéphores, Les Euménides | C18: Festival | D18: 2019-03-30 | E18: FM - Grand auditorium | F18: 220
A19: - | B19: Les Goûts Réunis. Deux siècles d’une rivalité française et italienne à l’opéra | C19: Concert | D19: 2019-06-28 | E19: FM - Grand auditorium | F19: 220
A20: Un texte, un mathématicien | B20: Les graphes, un autre univers en expansion | C20: Conférence | D20: 2019-02-20 | E20: FM - Grand auditorium | F20: 217
A21: Cours méthodique et populaire de philosophie | B21: Le monde ne fait-il qu'un ? | C21: Conférence | D21: 2019-01-16 | E21: FM - Grand auditorium | F21: 216
A22: Une collection de master class littéraires | B22: Mathias Énard | C22: Conférence | D22: 2019-02-12 | E22: FM - Petit auditorium | F22: 215
A23: - | B23: Regards sur Serge Tisseron. De la tintinologie à la robotique | C23: Conférence | D23: 2019-11-30 | E23: FM - Petit auditorium | F23: 215
A24: Cours méthodique et populaire de philosophie | B24: Littérature, philosophie | C24: Conférence | D24: 2019-04-17 | E24: FM - Grand auditorium | F24: 212
A25: Cours méthodique et populaire de philosophie | B25: La place d'autrui, par Bernard Sève | C25: Conférence | D25: 2019-11-12 | E25: FM - Grand auditorium | F25: 212
A26: Un texte, un mathématicien | B26: De la pomme de Newton aux courants de gravité : un ticket gratuit vers les étoiles | C26: Conférence | D26: 2019-01-23 | E26: FM - Grand auditorium | F26: 210
A27: Ciné-débats : Mettre en scène : théâtre et cinéma | B27: Arnaud Desplechin | C27: Conférence | D27: 2019-02-13 | E27: FM - Grand auditorium | F27: 210
A28: Un texte, un mathématicien | B28: Comment découvrir une démonstration pourtant longue et complexe […] | C28: Conférence | D28: 2019-04-17 | E28: FM - Grand auditorium | F28: 205
A29: Cours méthodique et populaire de philosophie | B29: Le passé existe-il quelque part ? | C29: Conférence | D29: 2019-01-30 | E29: FM - Grand auditorium | F29: 202

Sheet Tableau 17
A1: Tableau 17 : Fréquentation des activités d'éducation artistique et culturelle
A3: Par rapport aux années précédentes, ce tableau prend en compte l'accueil de groupes autonomes et les groupes grand public hors scolaire
A5: Activités | B5: Accueils BnF | C5: Accueils groupes autonomes
A6: Grand public
A7: Visites de la BnF | B7: 9009 | C7: 456
A8: Ateliers | B8: 1127
A9: Visites d'expositions | B9: 3036 | C9: 650
A10: Total | B10: =SUM(B7:B9) -> 13172 | C10: =SUM(C7:C9) -> 1106
A11: Scolaires
A12: Visites de la BnF | B12: 5194 | C12: 161
A13: Ateliers | B13: 5436
A14: Visites d'expositions | B14: 3264 | C14: 2013
A15: Autres (concours de récitation, journée presse...) | B15: =820+535 -> 1355
A16: Total | B16: =SUM(B12:B15) -> 15249 | C16: =SUM(C12:C14) -> 2174
A17: Formations enseignants
A18: Formations enseignants | B18: 427
A19: Hors PAF | B19: 371
A20: Visites d'expositions | B20: 613
A21: Journées EAC dans les territoires | B21: 251
A22: Autres (concours de récitation, journée presse...) | B22: =730+72+675+63 -> 1540
A23: Total | B23: =SUM(B18:B22) -> 3202 | C23: =SUM(C18:C21) -> 0
A24: TOTAL | B24: =B10+B16+B23 -> 31623 | C24: =C10+C16+C23 -> 3280

Sheet Tableau 18
A1: Tableau 18 : L'offre documentaire de Gallica
B3: 2016 | C3: 2017 | D3: 2018 | E3: 2019
A4: Monographies | B4: 343943 | C4: 370460 | D4: 389775 | E4: 425412
A5: Fascicules de périodiques | B5: 1785167 | C5: 1976433 | D5: 2349523 | E5: 3500459
A6: Documents iconographiques | B6: 1240129 | C6: 1513998 | D6: 1257843 | E6: 1402067
A7: Cartes et plans | B7: 102538 | C7: 137008 | D7: 156630 | E7: 170210
A8: Documents sonores | B8: 35329 | C8: 47404 | D8: 47521 | E8: 47612
A9: Manuscrits | B9: 60420 | C9: 69292 | D9: 78569 | E9: 92140
A10: Musique notée | B10: 42868 | C10: 46110 | D10: 49588 | E10: 47233
A11: Vidéos | B11: 18 | C11: 733 | D11: 1338 | E11: 1638
A12: Objets | B12: 178784 | C12: 179267 | D12: 179342 | E12: 222776
A13: Nombre total de documents | B13: =SUM(B4:B12) -> 3789196 | C13: =SUM(C4:C12) -> 4340705 | D13: =SUM(D4:D12) -> 4510129 | E13: =SUM(E4:E12) -> 5909547
A15: (hors documents uniquement indexés et hors Gallica intra muros)

Sheet Tableau 19
A1: Tableau 19 : La fréquentation de Gallica
B3: 2016 | C3: 2017 | D3: 2018 | E3: 2019
A4: gallica.bnf.fr* | B4: 11987267 | C4: 13468641 | D4: 15242033 | E4: 14926804
A5: lecteur exportable | B5: 134107 | C5: 50908 | D5: 19200 | E5: 8363
A6: application | B6: 337185 | C6: 371010 | D6: 312182 | E6: 259304
A7: Site mobile gallica.bnf.fr/m* | B7: 1523994 | C7: 1757629
A8: Gallica intra-muros | B8: 39455 | C8: 41404 | D8: 44771 | E8: 45823
A9: Gallica Labs | B9: 642
A10: Gallicadabra | C10: 7706 | D10: 7050 | E10: 9725
A11: Gallica studio | C11: 11867 | D11: 34498 | E11: 28227
A12: Numistral | B12: 17478 | C12: 21502 | D12: 38534 | E12: 43655
A13: Grande Collecte | B13: 13675 | C13: 8848 | D13: 36601 | E13: 22325
A14: Rotomagus | C14: 9890 | D14: 20661 | E14: 21691
A15: Bibliothèque numérique du RFN | C15: 13724 | D15: 26133 | E15: 27672
A16: Bibliothèque diplomatique numérique | D16: 39769 | E16: 34091
A17: France-Angleterre | D17: 20126 | E17: 85979
A18: Numba | E18: 20667
A19: IIIF-Gallica** | B19: 183449 | C19: 20614
A20: Nombre total de visites | B20: =SUM(B4:B19) -> 14237252 | C20: =SUM(C4:C19) -> 15783743 | D20: =SUM(D4:D19) -> 15841558 | E20: =SUM(E4:E19) -> 15534326
A22: En italiques : services ouverts en cours d'année.
A23: * mesures fusionnées en octobre 2017 entre site mobile et site principal
A24: ** arrêt de la mesure en mars 2017

Sheet Tableau 20
A1: Tableaux 20 : Les partenaires de Gallica au 31 décembre 2019
A3: Les partenaires de Gallica par types de partenaires | B3: 1997-2019
A4: Partenaires des territoires | B4: 256
A5: Partenaires de l’Enseignement supérieur et de la recherche | B5: 64
A6: Autres partenaires | B6: 91
A7: Bibliothèques étrangères | B7: 16
A8: Total des partenaires de Gallica | B8: 427
A9: (toutes filières)
A11: Nombre de documents des partenaires accessibles dans Gallica par filières | B11: Fin 2019
A12: Intégration par numérisation des documents dans les marchés et ateliers de la BnF | B12: 231890
A13: Intégration des fichiers numériques | B13: 104743
A14: Référencement par moissonnage des bibliothèques numériques partenaires | B14: 627146
A15: Total des documents des partenaires | B15: =SUM(B12:B14) -> 963779
